bitfinex-derivatives/quotes_ETHF0:USTF0_20250330
["timestamp","ask_amount","ask_price","bid_price","bid_amount"]
[1743376317505,2.57387,1806.4,1806.3,1.41950358]
[1743376318112,1.4665,1806.4,1806.3,1.41950358]
[1743376319514,2.57387,1806.4,1806.3,1.41950358]
[1743376319904,2.57387,1806.4,1806.3,0.00830358]
[1743376322216,2.57387,1806.4,1806.1,1.4621]
[1743376322217,6.73496,1806.4,1805.6,1.10784]
[1743376322407,1.1077,1805.9,1805.7,5.6545]
[1743376322608,1.5019,1805.8,1805.7,5.6545]
[1743376322911,3.2078,1806.1,1805.9,1.10765]
[1743376323107,1.5019,1806.0,1805.9,1.10765]
[1743376323305,3.2078,1806.1,1805.9,1.10761]
[1743376323506,0.00830358,1806.1,1806.0,5.26161]
[1743376324115,1.11585358,1806.1,1806.0,4.154]
[1743376324507,0.00830358,1806.1,1806.0,4.154]
[1743376324910,1.40720358,1806.1,1806.0,4.154]
[1743376325912,2.51477358,1806.1,1805.9,0.7487]
[1743376326107,1.40720358,1806.1,1805.8,0.74650358]
[1743376326411,1.40720358,1806.1,1805.9,5.26167]
[1743376326810,1.40720358,1806.1,1806.0,1.10761]
[1743376327015,1.40720358,1806.1,1805.9,4.154]
[1743376327310,1.40720358,1806.1,1806.0,1.10761]
[1743376329609,0.00830358,1806.1,1806.0,1.10761]
[1743376330121,0.00830358,1806.1,1806.0,4.31541]
[1743376330319,0.00830358,1806.1,1806.0,11.6390202]
[1743376332618,0.00830358,1806.1,1806.0,12.3864202]
[1743376335324,0.00830358,1806.1,1806.0,5.06281]
[1743376335622,1.10762,1806.0,1805.8,1.85419358]
[1743376335810,1.4381,1805.9,1805.8,1.85419358]
[1743376336019,2.54578,1805.9,1805.8,6.00719358]
[1743376336617,1.4381,1805.9,1805.8,6.00719358]
[1743376336920,1.4381,1805.9,1805.8,9.21499358]
[1743376339023,1.4381,1805.9,1805.8,5.06199358]
[1743376339326,1.4381,1805.9,1805.8,9.21499358]
[1743376339623,2.54578,1805.9,1805.8,3.21610358]
[1743376341027,1.4381,1805.9,1805.8,3.21610358]
[1743376341415,2.54578,1805.9,1805.8,3.21610358]
[1743376342121,8.25358,1805.9,1805.8,0.00830358]
[1743376342329,9.91517,1805.9,1805.2,4.6968]
[1743376342622,4.153,1806.0,1805.0,5.26121]
[1743376342623,1.10809,1805.3,1805.0,5.26121]
[1743376342819,1.4815,1805.2,1805.0,5.26121]
[1743376343023,1.4815,1805.2,1805.0,4.153]
[1743376343223,2.1735,1805.2,1804.9,6.2773]
[1743376343426,2.1735,1805.2,1805.0,3.2078]
[1743376343622,1.3831,1805.1,1804.9,0.00830358]
[1743376343922,1.10823,1805.0,1804.9,0.00830358]
[1743376344117,1.10837,1804.8,1804.5,4.31629]
[1743376344425,1.80042,1804.7,1804.5,4.6001]
[1743376344629,2.0751,1804.7,1804.4,8.8499]
[1743376344819,2.0751,1804.7,1804.5,1.10853]
[1743376345015,2.0751,1804.7,1804.5,2.50083]
[1743376345222,3.18351,1804.7,1804.5,1.3923]
[1743376345531,2.0751,1804.7,1804.4,3.21610358]
[1743376345721,2.0751,1804.7,1804.6,1.10847]
[1743376345920,2.0751,1804.7,1804.5,2.50082]
[1743376346418,3.18352,1804.7,1804.5,1.3923]
[1743376346724,2.0751,1804.7,1804.5,1.3923]
[1743376347227,3.18352,1804.7,1804.4,4.32469358]
[1743376347733,3.18352,1804.7,1804.4,3.21610358]
[1743376348027,1.10848,1804.6,1804.4,3.21610358]
[1743376348223,1.4332,1804.5,1804.4,3.21610358]
[1743376349315,3.9642,1805.0,1804.4,3.21610358]
[1743376349519,1.5122,1804.9,1804.8,1.10831]
[1743376350032,3.2078,1805.0,1804.8,1.10831]
[1743376350224,1.5122,1804.9,1804.8,1.10831]
[1743376350940,1.5122,1804.9,1804.7,2.56399]
[1743376351132,1.5122,1804.9,1804.8,1.10835]
[1743376351331,1.5122,1804.9,1804.7,2.56398]
[1743376351824,1.5122,1804.9,1804.8,1.10835]
[1743376352333,0.00830358,1805.2,1805.1,1.10817]
[1743376353018,0.00830358,1805.2,1805.1,3.98257]
[1743376353428,1.4376,1805.6,1805.5,1.10792]
[1743376353930,1.4376,1805.6,1805.4,8.46874]
[1743376354127,2.54547,1805.6,1805.4,4.153]
[1743376354324,1.4376,1805.6,1805.4,5.26095]
[1743376354630,1.4376,1805.6,1805.5,1.4187]
[1743376355832,1.4376,1805.6,1805.5,2.52662]
[1743376356829,1.4376,1805.6,1805.5,1.4187]
[1743376357026,1.10794,1805.5,1805.3,4.16030358]
[1743376357231,1.4981,1805.4,1805.3,5.26834358]
[1743376358026,3.97480358,1805.7,1805.5,1.10787]
[1743376358226,3.97480358,1805.7,1805.6,1.4454]
[1743376358438,3.97480358,1805.7,1805.3,4.16030358]
[1743376358631,3.97480358,1805.7,1805.3,5.26833358]
[1743376358832,1.10788,1805.6,1805.3,5.26833358]
[1743376359138,5.08264358,1805.7,1805.4,1.10796]
[1743376359335,5.08264358,1805.7,1805.4,2.52986]
[1743376359532,1.4752,1805.6,1805.5,1.10792]
[1743376359732,1.4752,1805.6,1805.5,2.52982]
[1743376361440,0.00830358,1805.7,1805.6,1.10786]
[1743376361739,1.49150358,1805.7,1805.6,5.25886]
[1743376362330,1.49150358,1805.7,1805.6,4.151]
[1743376363537,2.59930358,1805.7,1805.6,4.151]
[1743376363937,1.49150358,1805.7,1805.6,4.151]
[1743376364138,1.49150358,1805.7,1805.6,6.67966]
[1743376364336,1.49150358,1805.7,1805.6,5.5718]
[1743376364938,1.49150358,1805.7,1805.6,1.4208]
[1743376366536,1.10792,1805.5,1805.4,3.2078]
[1743376366738,1.10798,1805.4,1805.3,0.00830358]
[1743376366943,1.5164,1805.4,1805.3,0.00830358]
[1743376367240,2.62438,1805.4,1805.3,0.00830358]
[1743376367835,4.0164,1805.4,1805.0,5.25819]
[1743376368039,1.10814,1805.2,1805.0,4.15]
[1743376368236,1.3792,1805.1,1805.0,2.49563]
[1743376369543,1.3792,1805.1,1805.0,1.3874]
[1743376370143,2.48737,1805.1,1805.0,1.3874]
[1743376370339,1.3792,1805.1,1804.9,0.00830358]
[1743376370542,1.3792,1805.1,1805.0,1.10823]
[1743376371342,1.3792,1805.1,1804.9,1.39570358]
[1743376372045,1.3792,1805.1,1805.0,1.10823]
[1743376372247,1.3792,1805.1,1804.9,2.50394358]
[1743376372448,1.3792,1805.1,1804.9,1.39570358]
[1743376372648,3.2078,1805.3,1804.9,1.39570358]
[1743376372846,5.82626,1805.3,1804.9,1.39570358]
[1743376373048,1.5104,1805.2,1805.0,1.1082]
[1743376373243,1.5104,1805.2,1805.1,2.49147]
[1743376374645,2.6185,1805.2,1805.1,1.3833]
[1743376374845,1.5104,1805.2,1805.0,5.6654]
[1743376375151,1.376,1805.1,1805.0,5.6654]
[1743376375650,1.376,1805.1,1805.0,6.77363]
[1743376376944,1.376,1805.1,1805.0,2.62463]
[1743376377346,2.48417,1805.1,1805.0,1.5164]
[1743376377542,1.10823,1805.0,1804.9,0.00830358]
[1743376377743,1.3768,1805.0,1804.9,0.00830358]
[1743376378346,2.48503,1805.0,1804.9,0.00830358]
[1743376378555,7.11843,1805.0,1804.9,0.00830358]
[1743376378946,3.91063,1805.0,1804.9,0.00830358]
[1743376380447,2.8024,1805.0,1804.9,0.00830358]
[1743376380655,3.91063,1805.0,1804.9,0.00830358]
[1743376384552,1.10847,1804.6,1804.5,3.2078]
[1743376384759,1.10844,1804.7,1804.5,4.31632]
[1743376385053,1.3719,1804.6,1804.5,4.6311]
[1743376386346,2.48037,1804.6,1804.5,4.6311]
[1743376386554,3.22337,1804.6,1804.5,3.2078]
[1743376388158,2.1149,1804.6,1804.5,3.2078]
[1743376388358,2.1149,1804.6,1804.5,4.6362]
[1743376388658,2.1149,1804.6,1804.5,5.74473]
[1743376388858,2.1149,1804.6,1804.5,4.6362]
[1743376389357,1.3719,1804.6,1804.5,5.74473]
[1743376389748,1.3719,1804.6,1804.5,4.6362]
[1743376390260,1.3719,1804.6,1804.5,5.74473]
[1743376390458,1.3719,1804.6,1804.5,4.6362]
[1743376390853,1.3719,1804.6,1804.5,5.74473]
[1743376391049,7.3558,1805.0,1804.5,5.74473]
[1743376391050,3.2078,1805.2,1804.6,1.10847]
[1743376391253,3.2078,1805.2,1804.8,4.31611]
[1743376391254,1.3736,1805.0,1804.8,4.31611]
[1743376391455,2.48183,1805.0,1804.9,1.3756]
[1743376391661,2.48183,1805.0,1804.7,5.99007]
[1743376391954,1.4536,1804.9,1804.7,7.45447]
[1743376392156,1.4536,1804.9,1804.8,1.10835]
[1743376392457,1.4536,1804.9,1804.6,3.91]
[1743376392653,2.54747,1804.8,1804.6,4.31626]
[1743376392859,1.4536,1804.7,1804.6,4.31626]
[1743376393256,2.56201,1804.7,1804.6,3.2078]
[1743376393456,1.4536,1804.7,1804.6,3.2078]
[1743376393654,1.4536,1804.7,1804.5,1.4644]
[1743376393855,1.4536,1804.7,1804.5,2.5729]
[1743376394159,1.4536,1804.7,1804.6,1.10847]
[1743376394362,1.11658358,1805.0,1804.7,1.10841]
[1743376394662,1.11658358,1805.0,1804.6,7.3548]
[1743376394663,1.10835,1804.8,1804.6,7.3548]
[1743376394959,2.59851,1804.7,1804.6,3.2078]
[1743376395358,2.59851,1804.7,1804.5,2.60283]
[1743376395555,2.59857,1804.6,1804.5,4.7021]
[1743376395754,1.4901,1804.6,1804.5,4.7021]
[1743376396254,2.59857,1804.6,1804.5,4.7021]
[1743376396459,1.4901,1804.6,1804.5,5.81063]
[1743376396655,3.21610358,1805.0,1804.5,4.7021]
[1743376396958,1.4901,1804.9,1804.8,1.10835]
[1743376397155,0.00830358,1805.0,1804.9,1.10829]
[1743376397460,0.00830358,1805.0,1804.9,5.06959]
[1743376397658,1.49840358,1805.0,1804.9,1.86179]
[1743376397858,0.00830358,1805.0,1804.9,6.56389]
[1743376398164,1.39510358,1805.0,1804.9,3.35609]
[1743376398361,2.50333358,1805.0,1804.9,2.2478]
[1743376398557,1.10829,1804.9,1804.7,3.2078]
[1743376398763,2.49509,1804.9,1804.7,3.2078]
[1743376399060,2.49509,1804.9,1804.7,5.74101]
[1743376399267,1.3868,1804.8,1804.7,5.74101]
[1743376400062,1.3868,1804.8,1804.7,4.6326]
[1743376400362,1.3868,1804.8,1804.7,5.74101]
[1743376401359,0.00830358,1805.0,1804.8,1.10831]
[1743376401659,0.00830358,1805.0,1804.9,2.59119]
[1743376401862,0.00830358,1805.0,1804.9,9.94399]
[1743376402058,1.4296,1805.3,1805.2,1.1081]
[1743376402564,1.10792,1805.5,1805.3,1.10803]
[1743376402759,2.53753,1805.5,1805.3,1.10803]
[1743376402955,2.53753,1805.5,1805.4,1.4829]
[1743376403368,1.4296,1805.5,1805.4,2.59088]
[1743376403553,0.00830358,1805.6,1805.5,1.10792]
[1743376403755,0.00830358,1805.6,1805.5,2.9257]
[1743376403956,0.00830358,1805.6,1805.5,6.1335]
[1743376404260,1.47870358,1805.6,1805.5,4.03362]
[1743376404458,1.47870358,1805.6,1805.5,2.9257]
[1743376404663,1.47870358,1805.6,1805.5,2.1783]
[1743376404864,1.10792,1805.5,1805.4,0.00830358]
[1743376405362,1.10792,1805.5,1805.4,1.47680358]
[1743376405553,2.57832,1805.5,1805.4,1.47680358]
[1743376406161,2.57832,1805.5,1805.4,0.00830358]
[1743376406357,1.10804,1805.3,1805.2,3.2078]
[1743376407960,1.1081,1805.2,1805.1,0.00830358]
[1743376408162,1.10826,1805.0,1804.8,1.4552]
[1743376408365,1.3899,1804.9,1804.8,2.56355]
[1743376410158,1.4784,1805.2,1804.9,1.10824]
[1743376410465,1.3838,1805.1,1804.9,2.49354]
[1743376410661,1.3838,1805.1,1805.0,1.3853]
[1743376410864,1.3838,1805.1,1805.0,2.49353]
[1743376412159,1.83794,1805.5,1805.3,1.10803]
[1743376412467,0.73,1805.5,1805.2,1.10808]
[1743376412764,2.49181,1805.4,1805.3,1.3853]
[1743376412963,1.3838,1805.4,1805.3,1.3853]
[1743376413161,2.49178,1805.4,1805.3,1.3853]
[1743376413357,2.4918,1805.4,1805.2,4.31589]
[1743376413554,1.3768,1805.3,1805.2,4.6905]
[1743376415462,2.48484,1805.3,1805.2,4.6905]
[1743376415767,1.3768,1805.3,1805.2,4.6905]
[1743376416561,1.3768,1805.3,1805.2,5.7986]
[1743376416962,1.3768,1805.3,1805.2,4.6905]
[1743376418868,1.3768,1805.3,1805.2,1.4827]
[1743376421269,1.3768,1805.3,1805.2,2.5908]
[1743376421671,0.73,1805.5,1805.4,1.10798]
[1743376422172,1.83792,1805.5,1805.3,2.60472]
[1743376422367,0.73,1805.5,1805.4,1.10798]
[1743376422670,0.00830358,1805.6,1805.5,1.10792]
[1743376422860,0.00830358,1805.6,1805.5,2.49842]
[1743376423064,0.00830358,1805.6,1805.5,3.98862]
[1743376424969,0.00830358,1805.6,1805.5,2.8807]
[1743376425472,0.00830358,1805.6,1805.4,4.14]
[1743376425669,0.00830358,1805.6,1805.3,1.4242]
[1743376425670,1.10795,1805.5,1805.3,1.4242]
[1743376425981,1.4901,1805.4,1805.3,1.4242]
[1743376426873,1.4901,1805.4,1805.3,2.53224]
[1743376427166,1.4901,1805.4,1805.3,1.4242]
[1743376428065,2.59808,1805.4,1805.3,1.4242]
[1743376428271,1.4901,1805.4,1805.3,1.4242]
[1743376429474,1.4901,1805.4,1805.1,5.5979]
[1743376429764,1.10806,1805.3,1805.1,6.974]
[1743376429972,1.10806,1805.3,1805.2,1.3761]
[1743376430269,1.10802,1805.4,1805.2,1.3761]
[1743376430465,4.71870358,1805.6,1805.2,1.3761]
[1743376431069,1.10803,1805.4,1805.2,1.3761]
[1743376431666,1.10797,1805.5,1805.2,2.48419]
[1743376431968,4.71870358,1805.6,1805.3,1.3705]
[1743376432267,5.82661358,1805.6,1805.3,2.47852]
[1743376432471,1.10794,1805.5,1805.3,2.47852]
[1743376432670,1.10794,1805.5,1805.4,1.3705]
[1743376432868,5.82661358,1805.6,1805.4,1.3705]
[1743376433171,1.10792,1805.5,1805.4,1.3705]
[1743376433668,1.10799,1805.4,1805.2,1.10808]
[1743376433972,1.10797,1805.5,1805.2,2.47858]
[1743376434158,1.10797,1805.5,1805.3,1.3705]
[1743376435069,1.10798,1805.4,1805.3,1.3705]
[1743376435272,1.1081,1805.2,1805.1,2.8464]
[1743376436375,1.10809,1805.3,1805.1,2.8464]
[1743376436873,4.71870358,1805.6,1805.1,3.95454]
[1743376437073,4.71870358,1805.6,1805.2,1.3875]
[1743376437474,1.10804,1805.3,1805.2,1.3875]
[1743376440066,5.82659358,1805.6,1805.2,1.3875]
[1743376440268,5.82659358,1805.6,1805.3,1.10799]
[1743376440568,2.61879358,1805.6,1805.4,1.5153]
[1743376441374,1.10792,1805.5,1805.4,1.5153]
[1743376441675,2.61880358,1805.6,1805.4,1.5153]
[1743376442078,1.51090358,1805.6,1805.4,2.62326]
[1743376442278,3.2078,1806.0,1805.5,1.10792]
[1743376442486,0.7021,1806.1,1805.6,3.2078]
[1743376442777,0.7021,1806.1,1805.7,5.5468]
[1743376443076,2.52062,1806.0,1805.8,1.4108]
[1743376443276,2.52068,1805.9,1805.8,1.4108]
[1743376443467,2.52071,1805.9,1805.7,4.14430358]
[1743376443670,0.00830358,1806.1,1805.7,5.64480358]
[1743376443870,2.55153,1806.0,1805.8,1.5005]
[1743376444066,2.55158,1805.9,1805.8,1.5005]
[1743376444269,2.55161,1805.9,1805.7,4.14430358]
[1743376444474,0.00830358,1806.1,1805.7,5.64480358]
[1743376444672,2.55979358,1806.1,1805.8,2.60823]
[1743376444875,1.4439,1806.0,1805.9,1.5005]
[1743376445079,2.55151,1806.0,1805.9,1.5005]
[1743376449576,1.4439,1806.0,1805.9,1.5005]
[1743376449774,2.55151,1806.0,1805.9,1.5005]
[1743376449974,1.4439,1806.0,1805.9,1.5005]
[1743376450984,1.4439,1806.0,1805.9,3.32228]
[1743376451280,1.4439,1806.0,1805.9,4.05538]
[1743376451476,0.00830358,1806.1,1806.0,1.10761]
[1743376451683,0.00830358,1806.1,1806.0,1.5112]
[1743376451874,1.39780358,1806.1,1806.0,5.6442]
[1743376452778,2.50535358,1806.1,1806.0,5.6442]
[1743376453186,1.10761,1806.0,1805.9,1.4472]
[1743376453381,2.57071,1806.0,1805.9,1.4472]
[1743376453582,2.57071,1806.0,1805.8,1.3782]
[1743376453782,2.57078,1805.9,1805.8,5.5112]
[1743376454086,2.57078,1805.9,1805.8,1.3782]
[1743376454381,1.4631,1805.9,1805.8,2.48594]
[1743376454782,1.4631,1805.9,1805.8,1.3782]
[1743376455879,1.10774,1805.8,1805.7,0.00830358]
[1743376456290,3.18174,1805.8,1805.7,0.00830358]
[1743376456777,7.34335,1805.8,1805.3,4.864]
[1743376456979,1.10798,1805.4,1805.3,2.1891]
[1743376457883,4.5862,1805.5,1805.3,2.1891]
[1743376458083,1.3784,1805.4,1805.3,2.1891]
[1743376458487,2.48638,1805.4,1805.3,2.1891]
[1743376459285,1.3784,1805.4,1805.3,2.1891]
[1743376460886,2.48638,1805.4,1805.3,2.1891]
[1743376461882,1.10804,1805.3,1805.2,0.00553571]
[1743376462083,3.25554,1805.3,1805.2,0.00553571]
[1743376462287,3.25554,1805.3,1804.7,0.7392]
[1743376462288,1.10835,1804.8,1804.7,0.7392]
[1743376462481,1.10847,1804.6,1804.5,4.8413]
[1743376462983,1.10847,1804.6,1804.5,4.131]
[1743376463181,1.4452,1804.7,1804.5,4.131]
[1743376463496,1.10847,1804.6,1804.5,4.131]
[1743376463686,1.10847,1804.6,1804.5,1.393]
[1743376463882,1.4452,1804.7,1804.5,1.393]
[1743376464181,1.10847,1804.6,1804.5,1.393]
[1743376465782,4.7259,1804.6,1804.1,0.7082]
[1743376465985,1.10868,1804.3,1804.1,2.2224]
[1743376466182,1.10868,1804.3,1804.2,1.5142]
[1743376466887,1.10872,1804.2,1804.1,0.7082]
[1743376467089,1.10872,1804.2,1804.1,2.2224]
[1743376467281,3.2078,1804.6,1804.1,2.2224]
[1743376467483,1.10872,1804.2,1804.1,2.2224]
[1743376468282,1.1087,1804.3,1804.1,2.2224]
[1743376468484,3.2078,1804.6,1804.1,2.2224]
[1743376469184,1.10871,1804.3,1804.1,2.2224]
[1743376469485,1.10853,1804.5,1804.1,3.33116]
[1743376469685,1.10853,1804.5,1804.2,1.4502]
[1743376470188,3.2078,1804.6,1804.2,1.4502]
[1743376470189,1.10861,1804.4,1804.2,1.4502]
[1743376470588,3.2078,1804.6,1804.2,1.4502]
[1743376470589,1.10866,1804.3,1804.2,1.4502]
[1743376471187,3.2078,1804.6,1804.2,1.4502]
[1743376471387,1.10866,1804.3,1804.2,1.4502]
[1743376472191,1.10872,1804.2,1804.1,4.131]
[1743376472490,1.10872,1804.2,1804.1,5.6216]
[1743376473289,1.10872,1804.2,1804.1,1.4906]
[1743376475486,3.2078,1804.6,1804.1,4.6984]
[1743376475792,1.10862,1804.4,1804.2,0.7596]
[1743376475986,1.10862,1804.4,1804.2,2.2006]
[1743376476187,1.10856,1804.5,1804.2,2.2006]
[1743376476392,1.1086,1804.4,1804.3,1.441]
[1743376477886,1.10857,1804.5,1804.3,1.441]
[1743376478189,1.1086,1804.4,1804.3,1.441]
[1743376478694,1.10858,1804.5,1804.3,1.441]
[1743376478884,1.1086,1804.4,1804.3,1.441]
[1743376480689,3.2078,1804.4,1804.0,3.9331]
[1743376480893,3.2078,1804.4,1804.0,8.0621]
[1743376481096,1.4432,1804.3,1804.0,0.7253]
[1743376481289,3.2078,1804.2,1803.9,1.3883]
[1743376481593,4.31664,1804.0,1803.9,1.3883]
[1743376481794,1.1089,1803.9,1803.8,0.7448]
[1743376482490,1.1089,1803.9,1803.8,2.1331]
[1743376482896,1.1089,1803.9,1803.8,1.3883]
[1743376483090,3.2353,1803.9,1803.8,1.3883]
[1743376483486,2.8402,1803.9,1803.6,3.2078]
[1743376483691,1.10903,1803.7,1803.6,3.2078]
[1743376484296,1.10915,1803.5,1803.4,0.6949]
[1743376484497,1.10915,1803.5,1803.4,2.0877]
[1743376484798,1.3863,1803.6,1803.2,0.7189]
[1743376484999,2.49552,1803.4,1803.2,2.1117]
[1743376485198,1.10922,1803.4,1803.3,1.3928]
[1743376485699,1.84821,1803.5,1803.3,1.3928]
[1743376486097,1.10921,1803.4,1803.3,1.3928]
[1743376486398,0.739,1803.5,1803.3,1.3928]
[1743376486792,1.84817,1803.5,1803.2,1.10931]
[1743376486998,1.84817,1803.5,1803.3,1.4446]
[1743376487896,1.10921,1803.4,1803.3,1.4446]
[1743376488301,1.84819,1803.5,1803.3,1.4446]
[1743376488499,1.10921,1803.4,1803.3,1.4446]
[1743376488697,1.84819,1803.5,1803.3,1.4446]
[1743376489503,1.10921,1803.4,1803.3,1.4446]
[1743376491103,1.10921,1803.4,1803.2,0.693]
[1743376491303,1.10927,1803.3,1803.2,2.1953]
[1743376492101,1.10925,1803.4,1803.2,2.1953]
[1743376492803,1.10927,1803.3,1803.2,1.5023]
[1743376493107,0.6958,1803.4,1803.2,1.5023]
[1743376493704,1.10927,1803.3,1803.2,1.5023]
[1743376495406,1.10927,1803.3,1803.0,1.3827]
[1743376495407,3.2078,1803.3,1803.0,1.3827]
[1743376495705,1.1094,1803.1,1803.0,2.1334]
[1743376495902,3.2078,1803.3,1802.8,61.10656]
[1743376495903,1.10948,1803.0,1802.8,3.2078]
[1743376496103,1.10953,1802.9,1802.7,0.6857]
[1743376496500,1.10954,1802.9,1802.7,3.23384]
[1743376496907,1.10954,1802.9,1802.8,1.4385]
[1743376497504,0.7068,1803.0,1802.8,1.4385]
[1743376497812,1.10952,1802.9,1802.8,1.4385]
[1743376498001,0.7068,1803.0,1802.6,5.02377]
[1743376498002,1.10961,1802.8,1802.6,5.02377]
[1743376498206,1.10961,1802.8,1802.7,1.4385]
[1743376499111,0.00830358,1802.9,1802.4,3.9062]
[1743376499408,1.10976,1802.5,1802.4,0.6984]
[1743376499905,1.10983,1802.4,1802.3,1.5156]
[1743376500412,1.10993,1802.3,1802.1,0.7513]
[1743376500716,1.10995,1802.2,1802.1,1.5156]
[1743376500907,1.11008,1802.0,1801.8,3.9591]
[1743376501103,1.11008,1802.0,1801.9,1.5156]
[1743376501705,1.11008,1802.0,1801.8,3.9591]
[1743376501706,1.11026,1801.7,1801.6,0.6923]
[1743376501905,1.11032,1801.6,1801.5,3.9663]
[1743376502105,1.11032,1801.6,1801.5,3.2078]
[1743376502305,1.11038,1801.5,1801.2,0.7585]
[1743376502506,1.11038,1801.5,1801.2,2.2638]
[1743376502507,4.31822,1801.5,1801.2,2.2638]
[1743376502901,3.2078,1801.5,1801.1,3.2078]
[1743376503101,1.11052,1801.3,1801.1,4.7131]
[1743376503315,1.4908,1801.2,1801.1,4.7131]
[1743376503516,1.11048,1801.4,1801.1,4.7131]
[1743376503706,1.4908,1801.3,1801.2,1.5053]
[1743376504813,0.7048,1801.6,1801.2,1.5053]
[1743376505011,0.00830358,1801.7,1801.6,1.11032]
[1743376505203,0.00830358,1801.7,1801.5,4.31815]
[1743376505404,1.4382,1801.9,1801.6,2.49682]
[1743376505600,1.4382,1801.9,1801.7,2.49671]
[1743376505808,3.2078,1802.2,1801.8,1.8075]
[1743376506015,4.8613,1802.4,1801.8,1.8075]
[1743376506016,1.4382,1802.1,1801.9,1.3865]
[1743376506314,3.2078,1802.0,1801.4,1.11038]
[1743376506508,2.54833,1801.9,1801.8,0.00832686]
[1743376506707,5.75613,1801.9,1801.8,0.00832686]
[1743376507103,8.25613,1801.9,1801.8,0.00832686]
[1743376507309,9.92137,1801.9,1801.1,2.0838]
[1743376507610,1.11046,1801.4,1801.1,2.0838]
[1743376507810,1.3808,1801.3,1801.2,1.39]
[1743376508906,1.11044,1801.5,1801.2,1.39]
[1743376509116,1.11044,1801.5,1801.2,2.50056]
[1743376509314,1.11044,1801.5,1801.2,1.39]
[1743376509512,1.1105,1801.3,1801.2,1.39]
[1743376509916,3.24259,1801.4,1801.2,1.39]
[1743376510114,1.1105,1801.3,1801.2,1.39]
[1743376510316,2.4913,1801.3,1801.2,1.39]
[1743376511811,1.11065,1801.1,1800.8,3.2078]
[1743376512012,1.4768,1801.0,1800.8,3.2078]
[1743376512513,1.4768,1801.0,1800.9,1.459]
[1743376513015,0.00832686,1801.1,1800.9,2.56972]
[1743376513212,0.00832686,1801.1,1800.9,1.459]
[1743376513519,1.48512686,1801.1,1800.9,1.459]
[1743376513915,0.00832686,1801.1,1801.0,1.11069]
[1743376514223,3.2078,1801.5,1801.3,1.1105]
[1743376514415,3.2078,1801.5,1801.4,1.3752]
[1743376514617,3.2078,1801.5,1801.4,2.1323]
[1743376514813,2.63024,1801.6,1801.4,2.1323]
[1743376515513,1.5199,1801.6,1801.4,3.24272]
[1743376515710,0.00832686,1801.7,1801.6,1.11032]
[1743376515915,1.5199,1802.0,1801.8,1.11019]
[1743376516116,1.5199,1802.0,1801.9,1.3752]
[1743376516415,2.62997,1802.0,1801.9,1.3752]
[1743376516915,3.2078,1802.4,1801.9,1.3752]
[1743376517115,1.4288,1802.3,1802.0,0.7451]
[1743376517315,1.10998,1802.2,1802.1,1.4153]
[1743376517724,1.11001,1802.1,1802.0,4.127]
[1743376518622,1.43712686,1802.3,1801.9,1.4153]
[1743376518919,1.11007,1802.0,1801.9,1.4153]
[1743376519221,1.11007,1802.1,1801.9,1.4153]
[1743376519421,0.00832686,1802.3,1801.9,1.4153]
[1743376519623,1.10998,1802.2,1801.9,1.4153]
[1743376519817,2.61944,1802.1,1801.9,1.4153]
[1743376520025,2.61943,1802.1,1801.9,1.4153]
[1743376521320,1.11007,1802.0,1801.9,1.4153]
[1743376521526,1.5094,1802.0,1801.6,3.2078]
[1743376521724,1.11022,1801.8,1801.7,1.4287]
[1743376522127,1.11026,1801.7,1801.6,3.9053]
[1743376522621,1.11026,1801.7,1801.6,3.2078]
[1743376522925,1.11033,1801.6,1801.4,2.51424]
[1743376523221,2.48086,1801.6,1801.4,1.4038]
[1743376523527,1.11038,1801.5,1801.4,1.4038]
[1743376523719,2.48088,1801.5,1801.4,1.4038]
[1743376523922,1.11044,1801.4,1801.3,0.74572686]
[1743376524121,2.48094,1801.4,1801.3,0.74572686]
[1743376524518,2.48094,1801.4,1801.3,0.00832686]
[1743376524924,5.68874,1801.4,1801.3,0.00832686]
[1743376527420,2.48094,1801.4,1801.3,0.00832686]
[1743376527621,1.3705,1801.4,1801.3,0.00832686]
[1743376528620,1.82512,1801.8,1801.5,1.11037]
[1743376528818,1.4482,1801.7,1801.6,1.3712]
[1743376529123,2.55846,1801.7,1801.6,1.3712]
[1743376529518,1.11033,1801.6,1801.4,4.125]
[1743376529720,1.4482,1801.5,1801.4,5.4962]
[1743376530722,2.55858,1801.5,1801.4,5.4962]
[1743376530920,2.55858,1801.5,1801.3,1.50092686]
[1743376530921,1.11044,1801.4,1801.3,1.50092686]
[1743376531120,2.55864,1801.4,1801.3,0.00832686]
[1743376532018,1.4482,1801.4,1801.3,0.00832686]
[1743376532219,1.11037,1801.6,1801.3,1.45982686]
[1743376532418,1.1104,1801.5,1801.3,2.93352686]
[1743376532621,1.11044,1801.4,1801.3,0.00832686]
[1743376532917,2.57854,1801.4,1801.3,0.00832686]
[1743376534522,3.9165,1801.9,1801.3,0.00832686]
[1743376534725,2.57837,1801.7,1801.4,8.4422]
[1743376534929,2.57837,1801.7,1801.5,1.447]
[1743376535327,1.4681,1801.7,1801.6,1.11032]
[1743376535627,2.55328,1802.0,1801.7,1.11021]
[1743376535826,2.55329,1802.0,1801.8,1.447]
[1743376537124,2.55332,1802.0,1801.8,1.447]
[1743376538429,1.4432,1802.0,1801.8,1.447]
[1743376538618,1.4432,1802.0,1801.8,2.55719]
[1743376538822,0.00832686,1802.3,1801.9,1.4998]
[1743376539022,1.38642686,1802.3,1802.1,1.10997]
[1743376539228,1.11821686,1802.3,1802.2,1.4998]
[1743376539534,2.49631686,1802.3,1802.2,1.4998]
[1743376543729,4.59422686,1802.3,1801.8,3.2078]